[Event "2nd Cambridge Open 2024"]
[Site "Cambridge"]
[Date "2024.02.21"]
[Round "5.22"]
[White "Payne, Matthew J"]
[Black "Hebden, Mark L"]
[Result "1/2-1/2"]
[ECO "C56"]
[WhiteElo "2091"]
[BlackElo "2416"]
[Annotator "TA"]
[PlyCount "90"]
[EventDate "2024.02.18"]
[EventType "swiss"]
[EventCountry "ENG"]
[SourceTitle "playchess.com"]
[Source "ChessBase"]
[SourceQuality "1"]
[TimeControl "5400+30"]

{[%evp 11,90,14,10,12,15,29,14,21,64,28,20,0,2,10,20,6,18,0,12,7,28,30,37,32,31,0,0,13,21,27,24,24,56,53,62,50,71,16,55,-33,-25,-44,22,0,98,98,207,112,118,120,131,122,128,124,133,143,130,127,128,130,145,143,103,28,97,97,241,0,0,0,0,0,0,0,0,0,0,0,0,0,0]} 1. e4 {[%emt 0:00:19]} e5 {[%emt 0:00:11][%cal Be7e5,Be5d4][%mdl 32]} 2. Nf3 {[%emt 0:00:29]} Nc6 {[%emt 0:00:09]} 3. Bc4 {[%emt 0:00:08]} Nf6 {[%emt 0:01:05][%cal Bg8f6,Bf6e4,Be4c5][%mdl 32]} 4. d4 {[%emt 0:00:18]} exd4 {[%emt 0:00:13]} 5. e5 {[%emt 0:00:23]} Ne4 {[%emt 0:00:32]} 6. Qe2 {[%emt 0:00:53]} Nc5 $1 {[%emt 0:00:33]} 7. O-O {[%emt 0:00:55]} Be7 {[%emt 0:05:55]} 8. Rd1 {[%emt 0:01:18]} O-O {[%emt 0:12:51]} 9. Nxd4 {[%emt 0:04:14]} d5 {[%emt 0:00:56]} 10. exd6 {[%emt 0:10:33]} Bxd6 {[%emt 0:04:27]} 11. Nxc6 {[%emt 0:08:23]} bxc6 {[%emt 0:00:16]} 12. Be3 {[%emt 0:01:19]} Qh4 {[%emt 0:03:13]} 13. g3 {[%emt 0:05:10]} Qf6 {[%emt 0:00:31]} 14. Qh5 {[%emt 0:13:51]} Bf5 {[%emt 0:01:30][%cal Of5c2]} 15. Bd4 {[%emt 0:01:52]} Bg6 {[%emt 0:06:27]} 16. Qxc5 {[%emt 0:04:53]} Bxc5 {[%emt 0:01:42]} 17. Bxf6 {[%emt 0:00:04]} gxf6 {[%emt 0:00:10]} 18. Bd3 {[%emt 0:04:41]} Rab8 {[%emt 0:04:40]} 19. b3 {[%emt 0:09:26]} Rfd8 {[%emt 0:09:58] ...Bxd3 would now be deadly.} 20. Nd2 $1 {[%emt 0:01:50][%cal Bb1d2,Bd2c4,Bc4e5][%mdl 32]} Bh5 {[%emt 0:03:33]} (20... Bxd3 21. cxd3 Rxd3 22. Ne4 $14) 21. Rf1 {[%emt 0:00:46]} f5 {[%emt 0:01:35][%cal Bf6f5,Bf5f4][%mdl 32]} 22. Nc4 {[%emt 0:01:57][%cal Oa1e1]} f4 {[%emt 0:02:52]} 23. Rfe1 {[%emt 0:05:45]} (23. gxf4 Kh8 24. Rfe1 Rg8+ 25. Kf1 Bd4 $19) 23... Re8 {[%emt 0:03:50]} 24. c3 {[%emt 0:02:06]} ({White should try} 24. gxf4 $16 Bd4 25. Rab1) 24... Rbd8 {[%emt 0:04:05] aiming for ...Rxe1+.} 25. Bf5 {[%emt 0:03:56]} (25. gxf4 $2 Rxe1+ 26. Rxe1 Rxd3 $19) (25. Rxe8+ $14 Rxe8 26. gxf4) 25... fxg3 {[%emt 0:02:04]} 26. hxg3 {[%emt 0:00:20]} Bf3 {[%emt 0:00:22]} (26... Re2 $15 27. Rxe2 Bxe2) 27. Ne5 {[%emt 0:06:35]} Bd5 {[%emt 0:04:09]} (27... Rd2 $11 {remains equal.} 28. Nxf3 Bxf2+ 29. Kf1 Bxe1 (29... Rxe1+ 30. Nxe1 Bxg3 31. Bg4 $18) 30. Rxe1 (30. Nxe1 Re3 $17) 30... Rxe1+ (30... Rxa2 $2 31. Rxe8+ Kg7 32. Bd3 $18) 31. Kxe1 Rxa2) 28. Nd7 $36 {[%emt 0:02:42][%mdl 2048] Keeping Black busy.} Be7 {[%emt 0:02:36] [#]} (28... Rxe1+ $16 {was called for.} 29. Rxe1 Ba3) 29. Rad1 {[%emt 0:01:16]} (29. c4 $1 $18 {[%cal Rc4d5]} Be6 (29... Bf3 $2 30. Re3 $18) 30. Bxe6 fxe6 31. Rad1) 29... Kg7 {[%emt 0:00:18] [#]} 30. c4 $1 {[%emt 0:01:53] White has more active pieces.} Be6 {[%emt 0:00:27]} 31. Bxe6 {[%emt 0:01:17]} Bb4 {[%emt 0:00:27]} 32. Re4 {[%emt 0:01:29]} Rxe6 {[%emt 0:01:34]} 33. Rxe6 {[%emt 0:00:22]} fxe6 {[%emt 0:00:08][%mdl 4096] Endgame. KRB-KRN} 34. Rd3 {[%emt 0:00:10]} a5 {[%emt 0:01:19]} 35. Ne5 {[%emt 0:00:52]} Rxd3 {[%emt 0:00:23]} 36. Nxd3 {[%emt 0:00:02] KB-KN} Kf6 {[%emt 0:00:18]} 37. f3 {[%emt 0:01:40]} (37. Kg2 $16) 37... Bd6 {[%emt 0:04:05]} (37... Bc3 $1 $11) 38. Kf2 {[%emt 0:00:17]} h5 {[%emt 0:00:22]} (38... Be5 $16 {was worth a try.}) 39. a4 $2 {[%emt 0:00:56]} (39. c5 $18 Bf8 40. g4) 39... c5 $11 {[%emt 0:02:11] The position is equal.} 40. f4 {[%emt 0:01:33]} e5 {[%emt 0:00:46]} 41. fxe5+ {[%emt 0:00:43]} Bxe5 {[%emt 0:00:02]} 42. Kf3 {[%emt 0:00:07]} Bd6 {[%emt 0:00:20]} 43. Nc1 {[%emt 0:01:19]} Ke5 {[%emt 0:00:43] Hoping for ...Kd4.} 44. Ke3 {[%emt 0:00:17]} Kf5 {[%emt 0:03:08]} 45. Kf3 {[%emt 0:00:13]} Ke5 {[%emt 0:12:13] Blacks defense is rewarded with a draw.   Weighted Error Value: White=0.20 (precise) /Black=0.23 (precise) .  Missed win:     	White=1     	---        Mistake:       	White=4     	Black=5      Inaccurate:     	White=1     	Black=3      OK:         	White=17    	Black=13     Best:        	White=1     	Black=2      Strong:       	White=2     	---} 1/2-1/2

[Event "2nd Cambridge Open 2024"]
[Site "Cambridge"]
[Date "2024.02.21"]
[Round "5.23"]
[White "York-Weaving, Richard"]
[Black "Pert, Nina"]
[Result "1-0"]
[ECO "B12"]
[WhiteElo "2343"]
[BlackElo "1968"]
[Annotator "TA"]
[PlyCount "169"]
[EventDate "2024.02.18"]
[EventType "swiss"]
[EventCountry "ENG"]
[SourceTitle "playchess.com"]
[Source "ChessBase"]
[SourceQuality "1"]
[TimeControl "5400+30"]

{[%evp 12,169,10,13,35,25,29,26,27,15,18,9,45,23,41,30,45,51,89,75,59,47,68,32,116,83,126,49,57,70,74,57,77,38,95,50,96,0,46,11,0,0,89,97,106,84,102,87,93,80,86,94,102,102,108,102,121,100,289,155,155,155,195,135,154,125,143,125,125,118,125,118,118,104,104,104,135,135,135,130,147,135,135,135,135,135,135,135,135,135,128,128,128,128,128,128,137,120,195,188,405,408,399,385,588,551,650,594,593,0,671,672,722,666,1118,1055,1078,633,671,660,639,605,883,883,893,826,941,939,892,891,918,663,597,489,470,440,890,845,833,575,689,678,1295,1186,2979,2930,29975,29976,29976,29977,29977,29978,6307,5739,29987,29988,29988,29989,29988,29989]} 1. e4 {[%emt 0:00:57]} c6 {[%emt 0:00:04][%cal Bc7c6,Bc6c5,Bc5c4][%mdl 32]} 2. d4 {[%emt 0:00:07]} d5 {[%emt 0:00:03]} 3. e5 {[%emt 0:00:14]} c5 {[%emt 0:01:05]} 4. c3 {[%emt 0:00:16]} Nc6 {[%emt 0:01:14]} 5. Be2 {[%emt 0:00:10]} Bf5 {[%emt 0:00:26]} 6. Nf3 {[%emt 0:00:21]} e6 {[%emt 0:00:12]} 7. O-O {[%emt 0:00:28]} h6 {[%emt 0:01:50]} 8. Be3 {[%emt 0:05:05]} c4 {[%emt 0:01:50]} 9. b3 {[%emt 0:02:25]} b5 {[%emt 0:01:29] Weiß hat minimalen Vorteil.} 10. a4 {[%emt 0:00:50]} a6 {[%emt 0:00:58]} 11. b4 {[%emt 0:00:32]} Nge7 {[%emt 0:01:56]} 12. Na3 {[%emt 0:01:24][%cal Bb1a3,Ba3c2,Bc2e3][%mdl 32]} Na7 {[%emt 0:00:45]} 13. a5 {[%emt 0:01:28]} g5 {[%emt 0:01:37]} 14. Nc2 {[%emt 0:02:19]} Bh7 {[%emt 0:03:20]} 15. Bd2 {[%emt 0:02:49]} Ng6 {[%emt 0:01:27]} 16. g3 {[%emt 0:01:55]} Nc6 {[%emt 0:05:10]} 17. Ne3 {[%emt 0:05:51]} Kd7 {[%emt 0:01:40]} ({Günstiger ist} 17... f5 $14) 18. Ng2 {[%emt 0:04:52]} Nce7 {[%emt 0:05:50]} 19. h4 {[%emt 0:03:42]} (19. Nfe1 $16) 19... gxh4 $14 {[%emt 0:00:58]} 20. Nfxh4 {[%emt 0:00:48]} Nxh4 {[%emt 0:00:37]} 21. Nxh4 {[%emt 0:00:05]} Bg7 {[%emt 0:05:18]} 22. Ng2 {[%emt 0:02:39]} Ng6 {[%emt 0:07:34]} (22... h5 $14) 23. Ne3 {[%emt 0:01:43]} Qg8 {[%emt 0:09:16]} (23... h5 $1 $14 {kam in Betracht.}) 24. Bg4 {[%emt 0:02:50]} (24. Bh5 $16) 24... Ne7 {[%emt 0:01:06]} (24... h5 $1 $11 {war vorzuziehen.} 25. Bxh5 Ne7) 25. Kg2 {[%emt 0:01:07]} Be4+ {[%emt 0:04:12]} 26. Bf3 {[%emt 0:03:53]} Bg6 {[%emt 0:02:41]} (26... Qh7 $11 {hält das Gleichgewicht.}) 27. Rh1 $16 {[%emt 0:00:50]} Nf5 {[%emt 0:03:58]} 28. Rh2 {[%emt 0:01:58]} Rh7 {[%emt 0:03:38]} 29. Nxf5 {[%emt 0:02:22]} Bxf5 {[%emt 0:00:13]} 30. Bf4 {[%emt 0:00:09]} Bf8 {[%emt 0:06:40]} 31. Qe2 {[%emt 0:01:01]} Qg6 {[%emt 0:04:01]} 32. Rah1 {[%emt 0:01:04]} Rc8 {[%emt 0:02:33]} 33. Qe3 {[%emt 0:03:03]} Bc2 {[%emt 0:03:45]} 34. Bxh6 {[%emt 0:02:03]} Qd3 $2 {[%emt 0:03:17]} (34... Be7 $16 {war angesagt.}) 35. Bg5 {[%emt 0:08:18]} (35. Qxd3 $18 cxd3 36. Bd2 (36. Bxf8 $2 Rxh2+ 37. Rxh2 Rxf8 $17) 36... Rxh2+ 37. Rxh2) 35... Rxh2+ {[%emt 0:00:55]} 36. Rxh2 {[%emt 0:00:11]} Be7 {[%emt 0:00:26]} 37. Bf4 {[%emt 0:09:57]} (37. Qxd3 $18 Bxd3 38. Bxe7 Kxe7 39. Rh6) 37... Rg8 {[%emt 0:01:41]} 38. Be2 {[%emt 0:00:42]} Qf5 {[%emt 0:00:40]} 39. Rh1 {[%emt 0:03:55]} Qg6 {[%emt 0:00:46]} 40. Bf3 {[%emt 0:00:52]} Bf5 {[%emt 0:01:34]} 41. Rh6 {[%emt 0:01:47]} Qg7 {[%emt 0:00:08]} 42. Qc1 {[%emt 0:01:22]} Bd3 {[%emt 0:00:51]} 43. Qh1 {[%emt 0:01:52]} Bg6 {[%emt 0:00:41]} 44. Kg1 {[%emt 0:01:19][%cal Of3d5] [#] Bxd5! wäre nun fies.} Kc6 {[%emt 0:00:16]} 45. Qh3 {[%emt 0:01:24]} Rd8 {[%emt 0:01:04]} 46. Qg4 {[%emt 0:01:23]} Qg8 {[%emt 0:00:41]} 47. Rh1 {[%emt 0:02:05] Weiß steht aktiver. Schwarz hat schwache schwarze Felder} Re8 {[%emt 0:00:35]} 48. Bh6 {[%emt 0:00:59]} Rc8 {[%emt 0:00:36][%cal Be8c8,Bc8c7,Bc7d7][%mdl 32]} 49. Qf4 {[%emt 0:01:40]} Bf5 {[%emt 0:01:46]} 50. Bh5 {[%emt 0:01:39]} Rc7 {[%emt 0:00:28]} 51. g4 {[%emt 0:03:09][%cal Oh5f7]} Bd8 {[%emt 0:00:10]} 52. Rh3 {[%emt 0:00:58]} Be4 {[%emt 0:00:39]} 53. Kh2 {[%emt 0:00:29]} Rd7 {[%emt 0:00:31]} 54. Re3 {[%emt 0:00:49] Rxe4 ist eine echte Drohung.} Qh7 {[%emt 0:00:34]} (54... Bd3 $16 55. Rg3 Kb7) 55. Bg5 $18 {[%emt 0:00:42]} Bxg5 {[%emt 0:01:08]} (55... Bc7 56. Rh3 Bd3) 56. Qxg5 {[%emt 0:00:07]} Kc7 {[%emt 0:00:46]} 57. Qf6 {[%emt 0:01:20]} Kb7 {[%emt 0:02:33]} (57... Bd3 $142 58. Qg5 Kc6) 58. Rh3 {[%emt 0:00:37]} Qg8 {[%emt 0:00:27]} 59. Rh4 {[%emt 0:00:47]} Qh7 {[%emt 0:01:05]} 60. Rh3 $2 {[%emt 0:01:20]} ({Vorzuziehen ist} 60. Kg3 $18) 60... Kc7 $2 {[%emt 0:00:43][%mdl 8192]} (60... Qg8 $11 61. g5 Qe8) 61. g5 {[%emt 0:01:55]} Qg8 {[%emt 0:00:29]} 62. Bg4 {[%emt 0:03:00] Lässt Bf5 nicht zu} Bh7 {[%emt 0:00:19]} 63. Rh6 {[%emt 0:00:49]} Bd3 {[%emt 0:04:48]} 64. Rh8 {[%emt 0:02:35]} Qg6 {[%emt 0:00:04]} 65. Qxg6 {[%emt 0:01:09]} Bxg6 {[%emt 0:00:02][%mdl 4096] Endspiel. KRB-KRB} 66. Ra8 {[%emt 0:01:29]} Kb7 {[%emt 0:00:04]} 67. Rg8 {[%emt 0:00:08]} Re7 {[%emt 0:00:39]} 68. Kg3 {[%emt 0:00:08]} Bh7 {[%emt 0:00:25]} 69. Rf8 {[%emt 0:00:42]} Bg6 {[%emt 0:00:04] Lässt Bh5 nicht zu} 70. Kh4 {[%emt 0:00:28]} Rc7 {[%emt 0:00:46]} 71. Rg8 {[%emt 0:01:05]} Rc8 {[%emt 0:02:41]} 72. Rg7 {[%emt 0:00:09]} Rh8+ {[%emt 0:00:09]} 73. Kg3 {[%emt 0:00:05]} Re8 {[%emt 0:00:14]} (73... Rh7 $142 74. Rg8 Bc2) 74. f4 {[%emt 0:01:17]} Kc6 {[%emt 0:00:31]} 75. Bf3 {[%emt 0:01:04]} Kd7 {[%emt 0:00:18] [#]} 76. f5 $1 {[%emt 0:00:33][%mdl 512]} exf5 {[%emt 0:01:28] Und ...Ke6 würde nun gewinnen.} (76... Bxf5 77. Rxf7+) 77. Bxd5 {[%emt 0:00:05]} Re7 {[%emt 0:01:16]} 78. Rg8 {[%emt 0:01:01] Zielt auf Ra8 ab.} Kc7 {[%emt 0:01:05]} 79. Ra8 {[%emt 0:00:31]} Rd7 {[%emt 0:00:09]} 80. Bf3 {[%emt 0:00:15]} Rd8 {[%emt 0:00:47]} 81. Ra7+ {[%emt 0:00:26]} Kb8 {[%emt 0:00:12]} 82. Rxa6 {[%emt 0:00:06] Weiss will mit Ra8+ Matt setzen.} Kc7 {[%emt 0:00:38]} 83. Ra7+ {[%emt 0:00:08] Weiß setzt Matt.} Kc8 {[%emt 0:00:07]} 84. Ra8+ {[%emt 0:00:17]} Kc7 {[%emt 0:00:04]} 85. Rxd8 {[%emt 0:00:13] Gewichteter Fehlerwert: Weiß=0.24 (präzise) /Schwarz=0.38.  Verlustzug:     	---       	Schwarz=2     Fehler:       	Weiß=4     	Schwarz=9     Ungenau:       	Weiß=4     	Schwarz=4     OK:         	Weiß=14    	Schwarz=14    Bester:       	Weiß=4     	Schwarz=2} 1-0

[Event "2nd Cambridge Open 2024"]
[Site "Cambridge"]
[Date "2024.02.21"]
[Round "5.24"]
[White "Gourlay, Iain"]
[Black "Mocic, Ivano"]
[Result "1-0"]
[ECO "D30"]
[WhiteElo "2301"]
[BlackElo "2008"]
[Annotator "RC"]
[PlyCount "101"]
[EventDate "2024.02.18"]
[EventType "swiss"]
[EventCountry "ENG"]
[SourceTitle "playchess.com"]
[Source "ChessBase"]
[SourceQuality "1"]
[TimeControl "5400+30"]

1. Nf3 {[%emt 0:03:48]} Nf6 {[%emt 0:00:10]} 2. g3 {[%emt 0:00:08]} e6 {[%emt 0:02:45]} 3. Bg2 {[%emt 0:00:33]} d5 {[%emt 0:00:05]} 4. O-O {[%emt 0:00:13]} c5 {[%emt 0:01:39]} 5. c4 {[%emt 0:00:30]} Nc6 {[%emt 0:00:37]} 6. cxd5 {[%emt 0:00:52]} exd5 {[%emt 0:00:32]} 7. d4 {[%emt 0:00:45]} Ne4 {[%emt 0:02:23]} 8. a3 {[%emt 0:04:19]} a5 {[%emt 0:04:38]} 9. Be3 {[%emt 0:07:31]} c4 {[%emt 0:00:38]} 10. b3 {[%emt 0:02:08]} cxb3 {[%emt 0:02:06]} 11. Qxb3 {[%emt 0:00:35]} Be7 {[%emt 0:00:13]} 12. Nc3 {[%emt 0:10:48]} Nxc3 {[%emt 0:01:19]} 13. Qxc3 {[%emt 0:00:06]} Be6 {[%emt 0:01:21]} 14. Rab1 {[%emt 0:04:20]} Rb8 {[%emt 0:05:39]} 15. Bf4 {[%emt 0:02:57]} Rc8 {[%emt 0:05:23]} 16. Rxb7 {[%emt 0:02:50]} O-O {[%emt 0:06:05]} 17. Qd3 {[%emt 0:13:42]} h6 {[%emt 0:08:12]} 18. Ne5 {[%emt 0:05:07]} Nxe5 {[%emt 0:04:53]} 19. Bxe5 {[%emt 0:00:18]} Rc4 {[%emt 0:05:53]} 20. Rd1 {[%emt 0:12:56]} Ra4 {[%emt 0:04:26]} 21. Qa6 {[%emt 0:04:02]} Bc8 {[%emt 0:12:24]} 22. Qb5 {[%emt 0:03:34]} Bxb7 {[%emt 0:00:55]} 23. Qxa4 {[%emt 0:00:13]} Ba6 {[%emt 0:01:52]} 24. Bf3 {[%emt 0:01:34]} Bc4 {[%emt 0:00:23]} 25. Rb1 {[%emt 0:01:51]} Bf6 {[%emt 0:02:58]} 26. Rb8 {[%emt 0:02:27]} Qe7 {[%emt 0:01:29]} 27. Rxf8+ {[%emt 0:01:44]} Kxf8 {[%emt 0:00:18]} 28. Qxa5 {[%emt 0:06:18]} g6 {[%emt 0:02:15]} 29. Bxf6 {[%emt 0:02:27]} Qxf6 {[%emt 0:00:33]} 30. Qc5+ {[%emt 0:00:22]} Kg7 {[%emt 0:00:29]} 31. a4 {[%emt 0:00:19]} Qa6 {[%emt 0:00:15]} 32. a5 {[%emt 0:00:20]} Bxe2 {[%emt 0:00:40]} 33. Bxe2 {[%emt 0:00:23]} Qxe2 {[%emt 0:00:11]} 34. Qxd5 {[%emt 0:00:11]} Qd1+ {[%emt 0:00:32]} 35. Kg2 {[%emt 0:00:07]} Qa1 {[%emt 0:01:18]} 36. Qe5+ {[%emt 0:04:30]} Kg8 {[%emt 0:00:15]} 37. Qb8+ {[%emt 0:00:16]} Kg7 {[%emt 0:00:01]} 38. Qb6 {[%emt 0:00:15]} Qe1 {[%emt 0:01:26]} 39. Qc6 {[%emt 0:03:17]} Qxa5 {[%emt 0:00:10]} 40. d5 {[%emt 0:00:04]} Qd2 {[%emt 0:00:46]} 41. d6 {[%emt 0:00:14]} Qd4 {[%emt 0:04:44]} 42. h4 {[%emt 0:00:07]} g5 {[%emt 0:02:12]} 43. hxg5 {[%emt 0:01:06]} hxg5 {[%emt 0:00:10]} 44. d7 {[%emt 0:00:57]} g4 {[%emt 0:00:58]} 45. Qc7 {[%emt 0:01:09]} Qe4+ {[%emt 0:00:26]} 46. Kf1 {[%emt 0:00:24]} Qh1+ {[%emt 0:03:50]} 47. Ke2 {[%emt 0:00:06]} Qf3+ {[%emt 0:00:52]} 48. Ke1 {[%emt 0:00:07]} Qe4+ {[%emt 0:01:09]} 49. Kd2 {[%emt 0:00:13]} Qd4+ {[%emt 0:00:12]} 50. Kc2 {[%emt 0:00:39]} Qxf2+ {[%emt 0:03:33]} 51. Kb3 {[%emt 0:00:16]} 1-0

[Event "2nd Cambridge Open 2024"]
[Site "Cambridge"]
[Date "2024.02.21"]
[Round "5.25"]
[White "Southcott-Moyers, Indy"]
[Black "Shafi, Declan"]
[Result "0-1"]
[ECO "D85"]
[WhiteElo "2123"]
[BlackElo "2219"]
[Annotator "RC"]
[PlyCount "136"]
[EventDate "2024.02.18"]
[EventType "swiss"]
[EventCountry "ENG"]
[SourceTitle "playchess.com"]
[Source "ChessBase"]
[SourceQuality "1"]
[TimeControl "5400+30"]

1. d4 {[%emt 0:00:02]} Nf6 {[%emt 0:00:06]} 2. c4 {[%emt 0:00:36]} g6 {[%emt 0:00:04]} 3. Nc3 {[%emt 0:00:18]} d5 {[%emt 0:00:04]} 4. cxd5 {[%emt 0:00:56]} Nxd5 {[%emt 0:00:05]} 5. e4 {[%emt 0:00:12]} Nxc3 {[%emt 0:00:04]} 6. bxc3 {[%emt 0:00:04]} Bg7 {[%emt 0:00:06]} 7. Be3 {[%emt 0:00:16]} c5 {[%emt 0:00:29]} 8. Qd2 {[%emt 0:00:20]} cxd4 {[%emt 0:02:37]} 9. cxd4 {[%emt 0:01:31]} Nc6 {[%emt 0:00:09]} 10. Rd1 {[%emt 0:02:15]} Qa5 {[%emt 0:01:15]} 11. Qxa5 {[%emt 0:03:24]} Nxa5 {[%emt 0:00:06]} 12. Bd3 {[%emt 0:00:57]} O-O {[%emt 0:01:10]} 13. Nf3 {[%emt 0:00:32]} Bg4 {[%emt 0:02:32]} 14. Ke2 {[%emt 0:12:51]} Rfd8 {[%emt 0:03:57]} 15. d5 {[%emt 0:01:29]} e6 {[%emt 0:03:43]} 16. Bd2 {[%emt 0:08:38]} exd5 {[%emt 0:08:37]} 17. Bxa5 {[%emt 0:06:28]} b6 {[%emt 0:00:29]} 18. exd5 {[%emt 0:02:02]} Re8+ {[%emt 0:02:52]} 19. Kf1 {[%emt 0:00:59]} bxa5 {[%emt 0:00:15]} 20. h3 {[%emt 0:00:38]} Bd7 {[%emt 0:02:29]} 21. g3 {[%emt 0:04:04]} Rac8 {[%emt 0:05:38]} 22. Kg2 {[%emt 0:04:02]} Rc5 {[%emt 0:00:26]} 23. Bb1 {[%emt 0:09:37]} Ba4 {[%emt 0:03:42]} 24. Rc1 {[%emt 0:06:26]} Rxd5 {[%emt 0:00:50]} 25. Bc2 {[%emt 0:00:11]} Bb5 {[%emt 0:01:51]} 26. Bb3 {[%emt 0:00:32]} Rf5 {[%emt 0:05:12]} 27. a4 {[%emt 0:07:03]} Be2 {[%emt 0:03:00]} 28. Bd1 {[%emt 0:00:26]} Bd3 {[%emt 0:03:54]} 29. Bc2 {[%emt 0:01:22]} Rd5 {[%emt 0:04:57]} 30. Bxd3 {[%emt 0:01:58]} Rxd3 {[%emt 0:01:10]} 31. Rc7 {[%emt 0:01:16]} Ra3 {[%emt 0:02:16]} 32. Rd1 {[%emt 0:02:17]} h6 {[%emt 0:01:41]} 33. Rdd7 {[%emt 0:01:46]} Rf8 {[%emt 0:00:23]} 34. Rc4 {[%emt 0:04:40]} a6 {[%emt 0:01:00]} 35. Ne1 {[%emt 0:03:36]} Re8 {[%emt 0:03:29]} 36. Nc2 {[%emt 0:00:21]} Rc3 {[%emt 0:01:12]} 37. Rxc3 {[%emt 0:01:02]} Bxc3 {[%emt 0:00:06]} 38. Rc7 {[%emt 0:00:08]} Bf6 {[%emt 0:00:51]} 39. Rc6 {[%emt 0:01:00]} Re6 {[%emt 0:00:10]} 40. Rxe6 {[%emt 0:00:44]} fxe6 {[%emt 0:00:06]} 41. Kf3 {[%emt 0:00:11]} Kf7 {[%emt 0:00:14]} 42. Ke4 {[%emt 0:02:05]} Ke7 {[%emt 0:00:25]} 43. Nd4 {[%emt 0:01:50]} Kd6 {[%emt 0:00:52]} 44. Nb3 {[%emt 0:00:04]} Bc3 {[%emt 0:01:00]} 45. g4 {[%emt 0:02:09]} g5 {[%emt 0:01:22]} 46. f3 {[%emt 0:05:24]} Be1 {[%emt 0:00:43]} 47. Nc1 {[%emt 0:01:27]} Bd2 {[%emt 0:00:54]} 48. Nb3 {[%emt 0:00:14]} Bb4 {[%emt 0:01:18]} 49. Kd4 {[%emt 0:00:45]} Be1 {[%emt 0:03:23]} 50. Ke4 {[%emt 0:00:16]} e5 {[%emt 0:01:25]} 51. Ke3 {[%emt 0:02:45]} Kd5 {[%emt 0:00:41]} 52. Kd3 {[%emt 0:00:02]} Bb4 {[%emt 0:00:38]} 53. Nc1 {[%emt 0:00:27]} Bc5 {[%emt 0:03:38]} 54. Nb3 {[%emt 0:00:36]} Bb6 {[%emt 0:01:37]} 55. Nd2 {[%emt 0:00:37]} Bf2 {[%emt 0:00:47]} 56. Ne4 {[%emt 0:01:55]} Bd4 {[%emt 0:00:48]} 57. Nf6+ {[%emt 0:00:39]} Kc5 {[%emt 0:00:18]} 58. Nd7+ {[%emt 0:00:28]} Kb4 {[%emt 0:00:35]} 59. Nb8 {[%emt 0:00:30]} Kxa4 {[%emt 0:00:59]} 60. Kc4 {[%emt 0:00:23]} Ka3 {[%emt 0:00:34]} 61. Nxa6 {[%emt 0:00:35]} a4 {[%emt 0:00:23]} 62. Nb4 {[%emt 0:00:36]} Kb2 {[%emt 0:00:48]} 63. Kd3 {[%emt 0:00:26]} a3 {[%emt 0:00:32]} 64. Nc2 {[%emt 0:00:34]} a2 {[%emt 0:00:18]} 65. Kd2 {[%emt 0:00:12]} Bb6 {[%emt 0:00:43]} 66. Kd1 {[%emt 0:00:34]} Ba5 {[%emt 0:00:10]} 67. Na1 {[%emt 0:00:16]} Kxa1 {[%emt 0:00:10]} 68. Kc2 {[%emt 0:00:05]} Bd2 {[%emt 0:00:13]} 0-1

[Event "2nd Cambridge Open 2024"]
[Site "Cambridge"]
[Date "2024.02.21"]
[Round "5.26"]
[White "Brett, Andrew R"]
[Black "McClement, Andrew"]
[Result "1/2-1/2"]
[ECO "E49"]
[WhiteElo "2072"]
[BlackElo "2223"]
[Annotator "RC"]
[PlyCount "109"]
[EventDate "2024.02.18"]
[EventType "swiss"]
[EventCountry "ENG"]
[SourceTitle "playchess.com"]
[Source "ChessBase"]
[SourceQuality "1"]
[TimeControl "5400+30"]

1. d4 {[%emt 0:13:13]} Nf6 {[%emt 0:00:01]} 2. c4 {[%emt 0:00:01]} e6 {[%emt 0:00:06]} 3. Nc3 {[%emt 0:00:01]} Bb4 {[%emt 0:00:03]} 4. e3 {[%emt 0:00:02]} d5 {[%emt 0:00:10]} 5. a3 {[%emt 0:00:02]} Bxc3+ {[%emt 0:00:26]} 6. bxc3 {[%emt 0:00:02]} c5 {[%emt 0:00:07]} 7. cxd5 {[%emt 0:00:07]} exd5 {[%emt 0:00:09]} 8. Bd3 {[%emt 0:00:02]} O-O {[%emt 0:00:29]} 9. Ne2 {[%emt 0:00:08]} b6 {[%emt 0:00:35]} 10. O-O {[%emt 0:00:08]} Ba6 {[%emt 0:00:36]} 11. Ng3 {[%emt 0:02:12]} Qc8 {[%emt 0:09:18]} 12. Bxa6 {[%emt 0:22:28]} Qxa6 {[%emt 0:13:19]} 13. a4 {[%emt 0:03:01]} cxd4 {[%emt 0:14:12]} 14. cxd4 {[%emt 0:03:47]} Nc6 {[%emt 0:00:01]} 15. Ba3 {[%emt 0:03:49]} Rfe8 {[%emt 0:04:41]} 16. Nf5 {[%emt 0:03:54]} g6 {[%emt 0:05:19]} 17. Nd6 {[%emt 0:08:06]} Re6 {[%emt 0:01:15]} 18. Qc2 {[%emt 0:02:20]} Na5 {[%emt 0:01:11]} 19. Qc7 {[%emt 0:08:21]} Rf8 {[%emt 0:02:33]} 20. Nb5 {[%emt 0:03:44]} Rc8 {[%emt 0:02:40]} 21. Qf4 {[%emt 0:01:44]} Nb3 {[%emt 0:04:22]} 22. Nc7 {[%emt 0:05:29]} Rxc7 {[%emt 0:01:11]} 23. Qxc7 {[%emt 0:00:32]} Nxa1 {[%emt 0:02:06]} 24. Qd8+ {[%emt 0:10:52]} Ne8 {[%emt 0:00:59]} 25. Rxa1 {[%emt 0:01:45]} Qxa4 {[%emt 0:02:40]} 26. Qxd5 {[%emt 0:01:24]} a5 {[%emt 0:00:26]} 27. h4 {[%emt 0:01:51]} h5 {[%emt 0:00:42]} 28. Qd8 {[%emt 0:02:11]} Kh7 {[%emt 0:05:45]} 29. d5 {[%emt 0:00:45]} Rd6 {[%emt 0:03:34]} 30. Qe7 {[%emt 0:00:54]} Kg8 {[%emt 0:04:57]} 31. Bxd6 {[%emt 0:00:23]} Qxa1+ {[%emt 0:00:03]} 32. Kh2 {[%emt 0:00:05]} Nxd6 {[%emt 0:01:17]} 33. Qxd6 {[%emt 0:00:02]} a4 {[%emt 0:02:27]} 34. Qe7 {[%emt 0:00:27]} Kg7 {[%emt 0:01:03]} 35. d6 {[%emt 0:00:53]} Qf6 {[%emt 0:00:09]} 36. e4 {[%emt 0:01:58]} a3 {[%emt 0:01:43]} 37. Kg3 {[%emt 0:01:43]} a2 {[%emt 0:15:29]} 38. e5 {[%emt 0:00:13]} Qe6 {[%emt 0:00:07]} 39. Qxe6 {[%emt 0:00:30]} fxe6 {[%emt 0:00:01]} 40. d7 {[%emt 0:00:02]} a1=Q {[%emt 0:00:12]} 41. d8=Q {[%emt 0:00:07]} Qxe5+ {[%emt 0:00:09]} 42. Kh3 {[%emt 0:00:40]} Qf5+ {[%emt 0:00:26]} 43. Kg3 {[%emt 0:00:30]} b5 {[%emt 0:03:31]} 44. Qd7+ {[%emt 0:00:54]} Kh6 {[%emt 0:00:02]} 45. Qd8 {[%emt 0:00:24]} Qe5+ {[%emt 0:01:05]} 46. Kh3 {[%emt 0:00:18]} g5 {[%emt 0:01:15]} 47. hxg5+ {[%emt 0:00:22]} Qxg5 {[%emt 0:00:12]} 48. Qf8+ {[%emt 0:01:25]} Qg7 {[%emt 0:00:22]} 49. Qf4+ {[%emt 0:00:09]} Kh7 {[%emt 0:00:12]} 50. Qe4+ {[%emt 0:00:06]} Kh8 {[%emt 0:00:36]} 51. Qa8+ {[%emt 0:00:20]} Qg8 {[%emt 0:00:21]} 52. Qa1+ {[%emt 0:00:11]} Qg7 {[%emt 0:00:40]} 53. Qa8+ {[%emt 0:00:14]} Kh7 {[%emt 0:00:39]} 54. Qe4+ {[%emt 0:00:06]} Kh8 {[%emt 0:00:37]} 55. Qa8+ {[%emt 0:00:07]} 1/2-1/2